fUST/lending_fUST_20240729
["ID","MTS","AMOUNT","RATE_DAILY","PERIOD"]
[333484918,1722186638166,-87.8685062,0.00013857,2]
[333484919,1722186638176,-250.0,0.00013893,2]
[333484920,1722186638185,-250.0,0.0001393,2]
[333484921,1722186638195,-326.54265165,0.00014679,2]
[333484922,1722186638205,-500.0,0.00014679,2]
[333484923,1722186638215,-317.23296067,0.00014679,2]
[333484924,1722186638225,-500.0,0.00014679,2]
[333484925,1722186638235,-500.0,0.00014679,2]
[333484926,1722186638244,-500.0,0.00014679,2]
[333484927,1722186638254,-3256.58684176,0.00014679,5]
[333484928,1722186638264,-22033.78189033,0.0001468,2]
[333484929,1722186638278,-6409.96205683,0.0001468,2]
[333485142,1722187626135,-166.666666,0.00013416,2]
[333485143,1722187626166,-162.218359,0.00013484,2]
[333485144,1722187626192,-89.228052,0.00013531,2]
[333485145,1722187654110,-72.990307,0.00013531,2]
[333485146,1722187654135,-162.218359,0.00013578,2]
[333485147,1722187654159,-162.218359,0.00013625,2]
[333485148,1722187654184,-162.218359,0.00013671,2]
[333485149,1722187654206,-1020.9703317,0.00013699,2]
[333485150,1722187654230,-162.218359,0.00013718,2]
[333485151,1722187654254,-162.218359,0.00013765,2]
[333485152,1722187654276,-166.666666,0.00013781,2]
[333485153,1722187654300,-162.218359,0.00013812,2]
[333485154,1722187654323,-162.218359,0.00013859,2]
[333485155,1722187654348,-162.218359,0.00013906,2]
[333485156,1722187654372,-162.218359,0.00013953,2]
[333485157,1722187654397,-162.218359,0.00013999,2]
[333485158,1722187654421,-162.218359,0.00014046,2]
[333485159,1722187654446,-162.218359,0.00014093,2]
[333485160,1722187654470,-162.218359,0.0001414,2]
[333485161,1722187654495,-166.666666,0.00014147,2]
[333485162,1722187654520,-162.218359,0.00014187,2]
[333485163,1722187654543,-665.688682,0.00014247,2]
[333485164,1722187654566,-367.60913684,0.00014423,2]
[333485165,1722187654589,-300.0,0.00014469,2]
[333485166,1722187654612,-4545.83853667,0.0001447,2]
[333485167,1722187754199,-399.18,0.00010959,2]
[333485168,1722187788612,250.04869026,0.00010959,2]
[333485358,1722187846268,-300.78721,0.00013283,2]
[333485360,1722187871033,722.31414548,9.999e-05,2]
[333485364,1722187933548,401.28563638,0.0001212,2]
[333485366,1722188084556,401.28563638,9.999e-05,2]
[333485367,1722188127046,401.28563638,9.999e-05,2]
[333485368,1722188127706,985.54752459,9.999e-05,2]
[333485371,1722188227047,209.06981655,9.999e-05,2]
[333485372,1722188229551,209.06981655,9.999e-05,2]
[333485373,1722188343067,209.06981655,9.999e-05,2]
[333485374,1722188354064,209.06981655,9.999e-05,2]
[333485377,1722188473066,209.06981655,9.999e-05,2]
[333485379,1722188578071,209.06981655,9.999e-05,2]
[333485380,1722188676620,209.06981655,9.999e-05,2]
[333485381,1722188776582,322.4093833,9.999e-05,2]
[333485383,1722188830147,-300.0,0.00012119,2]
[333485384,1722188830170,-286.65978055,0.00012119,2]
[333485385,1722188843097,-13.34021945,0.00012119,2]
[333485386,1722188843118,-245.76003762,0.0001212,2]
[333485387,1722188843139,-11047.28265684,0.0001212,2]
[333485388,1722188843159,-1266.3223724,0.00012201,2]
[333485389,1722188843179,-166.666666,0.00012411,2]
[333485390,1722188843202,-159.931256,0.00012517,2]
[333485391,1722188843224,-159.931256,0.00012552,2]
[333485392,1722188843247,-159.931256,0.00012586,2]
[333485393,1722188843269,-359.4112535,0.00012608,2]
[333485394,1722188843291,-159.931256,0.0001262,2]
[333485395,1722188843314,-159.931256,0.00012655,2]
[333485396,1722188843337,-159.931256,0.00012689,2]
[333485397,1722188843361,-23.26161368,0.00012723,2]
[333485398,1722188845102,-136.66964232,0.00012723,2]
[333485399,1722188845124,-166.666666,0.0001275,2]
[333485400,1722188845146,-159.931256,0.00012758,2]
[333485401,1722188845169,-159.931256,0.00012792,2]
[333485402,1722188845191,-159.931256,0.00012826,2]
[333485403,1722188845214,-280.73956243,0.00012861,5]
[333485455,1722189032391,-166.666666,0.00012428,2]
[333485456,1722189032401,-391.5805885,0.00012577,2]
[333485457,1722189032412,-166.666666,0.00012767,2]
[333485458,1722189032425,-159.931256,0.00012861,2]
[333485459,1722189032434,-159.931256,0.00012895,2]
[333485460,1722189032445,-82.48785805,0.00012929,2]
[333485461,1722189032469,-77.44339795,0.00012929,2]
[333485462,1722189032483,-159.931256,0.00012964,2]
[333485463,1722189032492,-165.462226,0.00012986,2]
[333485464,1722189032502,-159.931256,0.00012998,2]
[333485465,1722189032512,-159.931256,0.00013032,2]
[333485466,1722189032521,-159.931256,0.00013067,2]
[333485467,1722189032532,-159.931256,0.00013101,2]
[333485468,1722189032550,-166.666666,0.00013106,2]
[333485469,1722189032562,-159.931256,0.00013135,2]
[333485470,1722189032572,-159.931256,0.0001317,2]
[333485471,1722189032581,-166.666666,0.00013445,2]
[333485472,1722189032590,-166.666666,0.00013784,2]
[333485473,1722189032599,-314.1097159,0.00014047,2]
[333485474,1722189032608,-166.666666,0.00014123,2]
[333485475,1722189032617,-152.61196378,0.00014241,2]
[333485476,1722189032626,-708.035705,0.00014247,2]
[333485477,1722189032635,-303.62757629,0.00014567,2]
[333485478,1722189032644,-300.0,0.00014665,2]
[333485479,1722189032662,-1487.92363967,0.00014666,5]
[333485480,1722189032674,-500.0,0.00014666,2]
[333485481,1722189032683,-483.25706206,0.00014666,2]
[333485482,1722189032692,-500.0,0.00014666,2]
[333485483,1722189032702,-179.05008726,0.00014666,2]
[333485548,1722189040623,-220.56565302,0.00014665,2]
[333485549,1722189040633,-163.16151217,0.00014665,2]
[333485550,1722189040645,-200.45166104,0.00014665,2]
[333485551,1722189040655,-366.4058926,0.00014665,2]
[333485552,1722189040666,-500.0,0.00014665,2]
[333485553,1722189040676,-629.67273911,0.00014665,2]
[333485554,1722189040688,-500.0,0.00014665,2]
[333485555,1722189040698,-320.94991274,0.00014666,2]
[333485556,1722189040709,-500.0,0.00014666,2]
[333485557,1722189040722,-500.0,0.00014666,2]
[333485558,1722189040731,-151.0,0.00014666,2]
[333485559,1722189040742,-230.05758085,0.00014666,2]
[333485560,1722189040752,-151.0,0.00014666,2]
[333485561,1722189040761,-96.59345498,0.00014666,2]
[333485562,1722189040774,-54.40654502,0.00014666,2]
[333485563,1722189040784,-151.0,0.00014666,2]
[333485564,1722189040794,-151.0,0.00014666,2]
[333485565,1722189040803,-151.0,0.00014666,2]
[333485566,1722189040813,-458.59345498,0.00014666,2]
[333485579,1722189043433,-41.40654502,0.00014666,2]
[333485580,1722189043445,-421.733873,0.00014666,2]
[333485581,1722189043455,-106.82449068,0.00014666,2]
[333485582,1722189043513,-314.90938232,0.00014666,2]
[333485583,1722189043524,-1176.36,0.00014666,2]
[333485584,1722189043535,-421.733873,0.00014666,2]
[333485585,1722189043545,-421.733873,0.00014666,2]
[333485586,1722189043556,-500.0,0.00014666,2]
[333485587,1722189043566,-500.0,0.00014666,2]
[333485588,1722189043576,-151.0,0.00014666,2]
[333485589,1722189043585,-83.95184233,0.00014666,2]
[333485599,1722189046444,-67.04815767,0.00014666,2]
[333485600,1722189046456,-500.0,0.00014666,2]
[333485601,1722189046467,-151.0,0.00014666,2]
[333485602,1722189046477,-151.0,0.00014666,2]
[333485603,1722189046487,-500.0,0.00014666,2]
[333485604,1722189046501,-151.0,0.00014666,2]
[333485605,1722189046511,-151.0,0.00014666,2]
[333485606,1722189046521,-151.0,0.00014666,2]
[333485607,1722189046531,-272.43246,0.00014666,2]
[333485608,1722189046542,-6.3132226,0.00014666,2]
[333485609,1722189046553,-144.6867774,0.00014666,2]
[333485610,1722189046562,-151.0,0.00014666,2]
[333485611,1722189046573,-151.0,0.00014666,2]
[333485612,1722189046583,-189.35716,0.00014666,2]
[333485613,1722189046592,-189.35716,0.00014666,2]
[333485614,1722189046602,-103.85939144,0.00014666,2]
[333485615,1722189046614,-85.49776856,0.00014666,2]
[333485616,1722189046623,-189.35716,0.00014666,2]
[333485617,1722189046633,-189.35716,0.00014666,2]
[333485618,1722189046643,-189.35716,0.00014666,2]
[333485619,1722189046652,-189.35716,0.00014666,2]
[333485620,1722189046662,-189.35716,0.00014666,2]
[333485621,1722189046672,-500.0,0.00014666,2]
[333485622,1722189046681,-151.0,0.00014666,2]
[333485623,1722189046777,-151.0,0.00014666,2]
[333485624,1722189046786,-151.0,0.00014666,2]
[333485625,1722189046797,-151.0,0.00014666,2]
[333485626,1722189046806,-151.0,0.00014666,2]
[333485627,1722189046816,-151.0,0.00014666,2]
[333485628,1722189046825,-151.0,0.00014666,2]
[333485629,1722189046834,-151.0,0.00014666,2]
[333485630,1722189046844,-151.0,0.00014666,2]
[333485631,1722189046853,-151.0,0.00014666,2]
[333485632,1722189046862,-151.0,0.00014666,2]
[333485633,1722189046872,-151.677989,0.00014666,2]
[333485634,1722189046881,-268.24742372,0.00014666,2]
[333485635,1722189046891,-500.0,0.00014666,2]
[333485636,1722189046900,-532.73,0.00014666,2]
[333485637,1722189046909,-500.0,0.00014666,2]
[333485638,1722189046918,-500.0,0.00014666,2]
[333485639,1722189046930,-500.0,0.00014666,2]
[333485640,1722189046942,-500.0,0.00014666,2]
[333485641,1722189046952,-500.0,0.00014666,2]
[333485642,1722189046962,-500.0,0.00014666,2]
[333485643,1722189046972,-500.0,0.00014666,2]
[333485644,1722189046981,-500.0,0.00014666,2]
[333485645,1722189046990,-392.85498164,0.00014666,2]
[333485646,1722189046999,-500.0,0.00014666,2]
[333485647,1722189047009,-500.0,0.00014666,2]
[333485648,1722189047018,-184.80927451,0.00014666,2]
[333485649,1722189047028,-989.47,0.00014666,2]
[333485650,1722189047037,-500.0,0.00014666,2]
[333485651,1722189047046,-500.0,0.00014666,2]
[333485652,1722189047056,-527.12,0.00014666,2]
[333485653,1722189047065,-510.89486563,0.00014666,2]
[333485654,1722189047074,-500.0,0.00014666,2]
[333485655,1722189047084,-500.0,0.00014666,2]
[333485656,1722189047093,-500.0,0.00014666,2]
[333485657,1722189047102,-500.0,0.00014666,2]
[333485658,1722189047111,-500.0,0.00014666,2]
[333485659,1722189047121,-500.0,0.00014666,2]
[333485660,1722189047130,-151.0,0.00014666,2]
[333485661,1722189047139,-151.0,0.00014666,2]
[333485662,1722189047150,-151.0,0.00014666,2]
[333485663,1722189047159,-151.0,0.00014666,2]
[333485664,1722189047168,-500.0,0.00014666,2]
[333485665,1722189047177,-151.0,0.00014666,2]
[333485666,1722189047187,-500.0,0.00014666,2]
[333485667,1722189047196,-151.0,0.00014666,2]
[333485668,1722189047205,-151.0,0.00014666,2]
[333485669,1722189047215,-500.0,0.00014666,2]
[333485670,1722189047225,-151.0,0.00014666,2]
[333485671,1722189047234,-500.0,0.00014666,2]
[333485672,1722189047243,-853.05,0.00014666,2]
[333485673,1722189047253,-500.0,0.00014666,2]
[333485674,1722189047262,-500.0,0.00014666,2]
[333485675,1722189047271,-529.52,0.00014666,2]
[333485676,1722189047280,-500.0,0.00014666,2]
[333485677,1722189047291,-500.0,0.00014666,2]
[333485678,1722189047300,-500.0,0.00014666,2]
[333485679,1722189047309,-500.0,0.00014666,2]
[333485680,1722189047318,-500.0,0.00014666,2]
[333485681,1722189047328,-500.0,0.00014666,2]
[333485682,1722189047337,-151.0,0.00014666,2]
[333485683,1722189047346,-151.0,0.00014666,2]
[333485684,1722189047356,-151.0,0.00014666,2]
[333485685,1722189047367,-151.0,0.00014666,2]
[333485686,1722189047376,-151.0,0.00014666,2]
[333485687,1722189047385,-567.30495299,0.00014666,2]
[333485688,1722189047396,-151.0,0.00014666,2]
[333485689,1722189047405,-500.0,0.00014666,2]
[333485690,1722189047415,-500.0,0.00014666,2]
[333485691,1722189047424,-151.0,0.00014666,2]
[333485692,1722189047433,-291.583367,0.00014666,2]
[333485693,1722189047443,-500.0,0.00014666,2]
[333485694,1722189047453,-500.0,0.00014666,2]
[333485695,1722189047462,-500.0,0.00014667,2]
[333485696,1722189047471,-500.0,0.00014667,2]
[333485697,1722189047480,-500.0,0.00014667,2]
[333485698,1722189047490,-151.0,0.00014667,2]
[333485699,1722189047503,-151.0,0.00014667,2]
[333485700,1722189047512,-500.0,0.00014667,2]
[333485701,1722189047522,-500.0,0.00014667,2]
[333485702,1722189047532,-500.0,0.00014667,2]
[333485703,1722189047542,-151.0,0.00014667,2]
[333485704,1722189047551,-151.0,0.00014667,2]
[333485705,1722189047561,-500.0,0.00014667,2]
[333485706,1722189047572,-500.0,0.00014667,2]
[333485707,1722189047584,-500.0,0.00014667,2]
[333485708,1722189047593,-500.0,0.00014667,2]
[333485709,1722189047602,-151.0,0.00014667,2]
[333485710,1722189047612,-151.370208,0.00014667,2]
[333485711,1722189047623,-500.0,0.00014667,2]
[333485712,1722189047633,-545.92,0.00014667,2]
[333485713,1722189047646,-500.0,0.00014667,2]
[333485714,1722189047656,-500.0,0.00014667,2]
[333485715,1722189047666,-151.0,0.00014667,2]
[333485716,1722189047677,-151.0,0.00014667,2]
[333485717,1722189047688,-500.0,0.00014667,2]
[333485718,1722189047700,-500.0,0.00014667,2]
[333485719,1722189047711,-500.0,0.00014667,2]
[333485720,1722189047723,-500.0,0.00014667,2]
[333485721,1722189047732,-500.0,0.00014667,2]
[333485722,1722189047741,-500.0,0.00014667,2]
[333485723,1722189047751,-151.0,0.00014667,2]
[333485724,1722189047762,-151.0,0.00014667,2]
[333485725,1722189047771,-500.0,0.00014667,2]
[333485726,1722189047780,-151.0,0.00014667,2]
[333485727,1722189047790,-151.0,0.00014667,2]
[333485728,1722189047799,-500.0,0.00014667,2]
[333485729,1722189047809,-500.0,0.00014667,2]
[333485730,1722189047818,-290.427174,0.00014667,2]
[333485731,1722189047827,-500.0,0.00014667,2]
[333485732,1722189047837,-500.0,0.00014667,2]
[333485733,1722189047846,-500.0,0.00014667,2]
[333485734,1722189047855,-500.0,0.00014667,2]
[333485735,1722189047865,-434.18908386,0.00014667,2]
[333485736,1722189047874,-151.0,0.00014667,2]
[333485737,1722189047886,-151.0,0.00014667,2]
[333485738,1722189047898,-151.0,0.00014667,2]
[333485739,1722189047909,-151.0,0.00014667,2]
[333485740,1722189047919,-151.0,0.00014667,2]
[333485741,1722189047928,-151.0,0.00014667,2]
[333485742,1722189047941,-151.0,0.00014667,2]
[333485743,1722189047951,-151.0,0.00014667,2]
[333485744,1722189047961,-151.0,0.00014667,2]
[333485745,1722189047971,-187.550357,0.00014667,2]
[333485746,1722189047980,-151.0,0.00014667,2]
[333485747,1722189047990,-151.0,0.00014667,2]
[333485748,1722189048000,-227.972018,0.00014667,2]
[333485749,1722189048010,-421.733873,0.00014667,2]
[333485750,1722189048020,-421.733873,0.00014667,2]
[333485751,1722189048029,-421.733873,0.00014667,2]
[333485752,1722189048039,-421.733873,0.00014667,2]
[333485753,1722189048049,-421.733873,0.00014667,2]
[333485754,1722189048058,-421.733873,0.00014667,2]
[333485755,1722189048067,-421.733873,0.00014667,2]
[333485756,1722189048077,-421.733873,0.00014667,2]
[333485757,1722189048087,-421.733873,0.00014667,2]
[333485758,1722189048097,-421.733873,0.00014667,2]
[333485759,1722189048107,-421.733873,0.00014667,2]
[333485760,1722189048116,-421.733873,0.00014667,2]
[333485761,1722189048126,-500.0,0.00014667,2]
[333485762,1722189048136,-151.0,0.00014667,2]
[333485763,1722189048146,-151.0,0.00014667,2]
[333485764,1722189048156,-151.0,0.00014667,2]
[333485765,1722189048165,-151.0,0.00014667,2]
[333485766,1722189048176,-151.0,0.00014667,2]
[333485767,1722189048186,-151.0,0.00014667,2]
[333485768,1722189048196,-151.0,0.00014667,2]
[333485769,1722189048207,-180.425288,0.00014667,2]
[333485770,1722189048218,-500.0,0.00014667,2]
[333485771,1722189048229,-151.0,0.00014667,2]
[333485772,1722189048239,-151.0,0.00014667,2]
[333485773,1722189048250,-151.0,0.00014667,2]
[333485774,1722189048260,-151.0,0.00014667,2]
[333485775,1722189048270,-151.0,0.00014667,2]
[333485776,1722189048280,-243.687116,0.00014667,2]
[333485777,1722189048289,-500.0,0.00014667,2]
[333485778,1722189048298,-189.35716,0.00014667,2]
[333485779,1722189048308,-189.35716,0.00014667,2]
[333485780,1722189048318,-189.35716,0.00014667,2]
[333485781,1722189048327,-189.35716,0.00014667,2]
[333485782,1722189048337,-189.35716,0.00014667,2]
[333485783,1722189048347,-189.35716,0.00014667,2]
[333485784,1722189048357,-189.35716,0.00014667,2]
[333485785,1722189048368,-189.35716,0.00014667,2]
[333485786,1722189048378,-189.35716,0.00014667,2]
[333485787,1722189048389,-189.35716,0.00014667,2]
[333485788,1722189048400,-189.35716,0.00014667,2]
[333485789,1722189048411,-189.357154,0.00014667,2]
[333485790,1722189048422,-151.0,0.00014667,2]
[333485791,1722189048434,-210.12009,0.00014667,2]
[333485792,1722189048446,-500.0,0.00014667,2]
[333485793,1722189048457,-151.0,0.00014667,2]
[333485794,1722189048468,-151.0,0.00014667,2]
[333485795,1722189048478,-151.0,0.00014667,2]
[333485796,1722189048487,-151.0,0.00014667,2]
[333485797,1722189048502,-151.0,0.00014667,2]
[333485798,1722189048511,-151.0,0.00014667,2]
[333485799,1722189048521,-151.0,0.00014667,2]
[333485800,1722189048533,-151.0,0.00014667,2]
[333485801,1722189048543,-262.256612,0.00014667,2]
[333485802,1722189048553,-500.0,0.00014667,2]
[333485803,1722189048562,-500.0,0.00014667,2]
[333485804,1722189048574,-500.0,0.00014667,2]
[333485805,1722189048585,-500.0,0.00014667,2]
[333485806,1722189048594,-500.0,0.00014667,2]
[333485807,1722189048604,-150.60857846,0.00014667,2]
[333485808,1722189048614,-574.14220209,0.00014667,2]
[333485809,1722189048623,-5354.11,0.00014667,2]
[333485810,1722189048633,-151.0,0.00014667,2]
[333485811,1722189048643,-151.0,0.00014667,2]
[333485812,1722189048653,-151.0,0.00014667,2]
[333485813,1722189048663,-191.419214,0.00014667,2]
[333485814,1722189048673,-151.0,0.00014667,2]
[333485815,1722189048683,-151.0,0.00014667,2]
[333485816,1722189048693,-500.0,0.00014667,2]
[333485817,1722189048704,-151.0,0.00014667,2]
[333485818,1722189048714,-151.0,0.00014667,2]
[333485819,1722189048724,-151.0,0.00014667,2]
[333485820,1722189048735,-151.0,0.00014667,2]
[333485821,1722189048745,-151.0,0.00014667,2]
[333485822,1722189048755,-529.52,0.00014667,2]
[333485823,1722189048764,-500.0,0.00014667,2]
[333485824,1722189048774,-500.0,0.00014667,2]
[333485825,1722189048784,-500.0,0.00014667,2]
[333485826,1722189048793,-151.0,0.00014667,2]
[333485827,1722189048802,-151.0,0.00014667,2]
[333485828,1722189048812,-151.0,0.00014667,2]
[333485829,1722189048822,-261.388514,0.00014667,2]
[333485830,1722189048832,-285.788388,0.00014668,2]
[333485831,1722189048841,-151.0,0.00014668,2]
[333485832,1722189048850,-211.232747,0.00014668,2]
[333485833,1722189048860,-151.0,0.00014668,2]
[333485834,1722189048870,-151.0,0.00014668,2]
[333485835,1722189048881,-151.0,0.00014668,2]
[333485836,1722189048891,-421.733873,0.00014668,2]
[333485837,1722189048901,-421.733873,0.00014668,2]
[333485838,1722189048911,-151.0,0.00014668,2]
[333485839,1722189048920,-34504.9547723,0.00014668,2]
[333485840,1722189048931,-151.07311,0.00014675,2]
[333485841,1722189048941,-151.0,0.00014675,2]
[333485842,1722189048951,-151.0,0.00014675,2]
[333485843,1722189049046,-151.0,0.00014675,2]
[333485844,1722189049057,-151.0,0.00014675,2]
[333485845,1722189049067,-151.0,0.00014675,2]
[333485846,1722189049077,-151.0,0.00014675,2]
[333485847,1722189049087,-151.0,0.00014675,2]
[333485848,1722189049097,-151.0,0.00014675,2]
[333485849,1722189049107,-231.118257,0.00014675,2]
[333485850,1722189049118,-151.0,0.00014675,2]
[333485851,1722189049128,-421.733873,0.00014675,2]
[333485852,1722189049139,-421.73387629,0.00014675,2]
[333485853,1722189049149,-151.0,0.00014675,2]
[333485854,1722189049159,-1030.25660275,0.00014675,2]
[333485855,1722189049170,-545.92,0.00014676,2]
[333485856,1722189049180,-208.01,0.00014676,2]
[333485857,1722189049191,-529.52,0.00014676,2]
[333485858,1722189049200,-151.0,0.00014677,2]
[333485859,1722189049211,-152.97,0.00014677,2]
[333485860,1722189049221,-500.0,0.00014677,2]
[333485861,1722189049232,-545.92,0.00014677,2]
[333485862,1722189049243,-500.0,0.00014677,2]
[333485863,1722189049253,-151.0,0.00014677,2]
[333485864,1722189049264,-151.0,0.00014677,2]
[333485865,1722189049275,-151.0,0.00014677,2]
[333485866,1722189049286,-500.0,0.00014677,2]
[333485867,1722189049297,-500.0,0.00014677,2]
[333485868,1722189049311,-183.52297265,0.00014677,2]
[333485869,1722189049321,-529.52,0.00014677,2]
[333485870,1722189049332,-281.99412835,0.00014678,2]
[333485871,1722189049342,-500.0,0.00014678,2]
[333485872,1722189049351,-500.0,0.00014678,2]
[333485873,1722189049361,-500.0,0.00014678,2]
[333485874,1722189049370,-500.0,0.00014678,2]
[333485875,1722189049380,-500.0,0.00014678,2]
[333485876,1722189049389,-500.0,0.00014678,2]
[333485877,1722189049399,-500.0,0.00014678,2]
[333485878,1722189049408,-500.0,0.00014678,2]
[333485879,1722189049418,-500.0,0.00014678,2]
[333485880,1722189049428,-500.0,0.00014678,2]
[333485881,1722189049438,-512.22822767,0.00014678,2]
[333485882,1722189049448,-500.0,0.00014678,2]
[333485883,1722189049458,-500.0,0.00014678,2]
[333485884,1722189049469,-151.0,0.00014678,2]
[333485885,1722189049478,-500.0,0.00014678,2]
[333485886,1722189049487,-500.0,0.00014678,2]
[333485887,1722189049503,-500.0,0.00014678,2]
[333485888,1722189049513,-500.0,0.00014678,2]
[333485889,1722189049523,-500.0,0.00014679,2]
[333485890,1722189049534,-545.92,0.00014679,2]
[333485891,1722189049546,-34504.9547723,0.0001468,2]
[333485892,1722189049557,-994.52512511,0.0001469,2]
[333485893,1722189049567,-526.94940313,0.0001469,2]
[333485894,1722189049578,-267.99213488,0.0001469,2]
[333485895,1722189049589,-1091.03770757,0.0001469,2]
[333485896,1722189049599,-815.82252143,0.0001469,2]
[333485897,1722189049611,-30000.0,0.0001469,2]
[333485898,1722189049621,-150.112233,0.000147,2]
[333485899,1722189049632,-303.62757629,0.0001475,2]
[333485900,1722189049642,-200.0,0.00014758,2]
[333485901,1722189049652,-8503.32589339,0.0001485,2]
[333485902,1722189049663,-203.987116,0.00014869,2]
[333485903,1722189049673,-529.52,0.00014899,2]
[333485904,1722189049684,-154.8150365,0.000149,2]
[333485905,1722189049694,-303.62757629,0.00014934,2]
[333485906,1722189049704,-529.52,0.00014939,2]
[333485907,1722189049715,-500.0,0.0001494,2]
[333485908,1722189049724,-500.0,0.0001494,2]
[333485909,1722189049735,-1176.36,0.0001494,2]
[333485910,1722189049745,-500.0,0.0001494,2]
[333485911,1722189049756,-500.0,0.0001494,2]
[333485912,1722189049766,-500.0,0.0001494,2]
[333485913,1722189049777,-500.0,0.0001494,2]
[333485914,1722189049787,-500.0,0.0001494,2]
[333485915,1722189049800,-500.0,0.0001494,2]
[333485916,1722189049809,-500.0,0.0001494,2]
[333485917,1722189049819,-500.0,0.0001494,2]
[333485918,1722189049829,-500.0,0.0001494,2]
[333485919,1722189049838,-500.0,0.0001494,2]
[333485920,1722189049848,-500.0,0.0001494,2]
[333485921,1722189049857,-500.0,0.0001494,2]
[333485922,1722189049866,-500.0,0.0001494,2]
[333485923,1722189049876,-506.12,0.0001494,2]
[333485924,1722189049886,-989.47,0.0001494,2]
[333485925,1722189049895,-500.0,0.0001494,2]
[333485926,1722189049905,-527.12,0.0001494,2]
[333485927,1722189049915,-500.0,0.0001494,2]
[333485928,1722189049924,-500.0,0.0001494,2]
[333485929,1722189049933,-255.3899183,0.0001494,2]
[333485930,1722189049943,-500.0,0.0001494,2]
[333485931,1722189049953,-500.0,0.0001494,2]
[333485932,1722189049962,-290.85263684,0.0001494,2]
[333485933,1722189049972,-500.0,0.0001494,2]
[333485934,1722189049981,-500.0,0.0001494,2]
[333485935,1722189049991,-853.05,0.0001494,2]
[333485936,1722189050001,-500.0,0.0001494,2]
[333485937,1722189050011,-150.83,0.0001494,2]
[333485938,1722189050021,-500.0,0.0001494,2]
[333485939,1722189050030,-500.0,0.0001494,2]
[333485940,1722189050040,-500.0,0.0001494,2]
[333485941,1722189050051,-500.0,0.0001494,2]
[333485942,1722189050060,-500.0,0.0001494,2]
[333485943,1722189050070,-500.0,0.00014941,2]
[333485944,1722189050080,-500.0,0.00014941,2]
[333485945,1722189050089,-500.0,0.00014941,2]
[333485946,1722189050099,-367.10875511,0.00014941,2]
[333485947,1722189050108,-500.0,0.00014941,2]
[333485948,1722189050117,-500.0,0.00014941,2]
[333485949,1722189050127,-435.75606622,0.00014941,2]
[333485950,1722189050136,-500.0,0.00014941,2]
[333485951,1722189050146,-500.0,0.00014941,2]
[333485952,1722189050155,-510.81,0.00014941,2]
[333485953,1722189050165,-548.85,0.00014941,2]
[333485954,1722189050174,-500.0,0.00014941,2]
[333485955,1722189050183,-502.9,0.00014941,2]
[333485956,1722189050192,-365.91731003,0.00014941,2]
[333485957,1722189050203,-500.0,0.00014941,2]
[333485958,1722189050213,-500.0,0.00014941,2]
[333485959,1722189050222,-500.0,0.00014941,2]
[333485960,1722189050232,-500.0,0.00014941,2]
[333485961,1722189050242,-333.71160403,0.00014941,2]
[333485962,1722189050252,-603.98,0.00014941,2]
[333485963,1722189050262,-5354.11,0.00014941,2]
[333485964,1722189050274,-500.0,0.00014941,2]
[333485965,1722189050285,-500.0,0.00014941,2]